Cogmind - Beta 17 @@@ ROGUE MODE // 2026.07.01 @ 01:09:50 Player: THN-L0C Result: Destroyed by C4-PJV(R) with Subdweller Laser Performance ------------- Evolutions (0) 0 Regions Visited (2) 400 Robots Destroyed (20) 100 Value Destroyed (457) 457 Prototype IDs (2) 40 Alien Tech Used (0) 0 Bonus (0) 0 TOTAL SCORE: 997 Bonus ------- None Cogmind --------- Core Integrity 0/250 Matter 259/300 Energy 100/100 System Corruption 0% Temperature Cool (6) Movement Rolling (115) Ox1 Location -10/Subcaves Parts ------- > --- POWER (1) -------- (None) > --- PROPULSION (2) --- Compact Wheel Compact Wheel > --- UTILITY (2) ------ High-capacity Storage Unit Hardened Light Armor Plating > --- WEAPON (2) ------- (None) > --- INVENTORY (20) --- Light Ion Engine Subdweller Monowheel Medium Matter Pod (100) High-capacity Matter Pod (200) Improved Terrain Scanner Seismic Detector Seismic Detector Hardened Light Armor Plating Hardened Light Armor Plating Scrap Shield Mining Laser Plasma Cutter Peak State ------------ > --- POWER ------------ Ion Engine > --- PROPULSION ------- Improved Hover Unit Improved Hover Unit > --- UTILITY ---------- Small Storage Unit Seismic Detector > --- WEAPON ----------- Assault Rifle Assault Rifle > --- INVENTORY -------- Compact Wheel High-capacity Storage Unit Small Matter Pod Improved Terrain Scanner Hardened Light Armor Plating Mining Laser Plasma Cutter [Rating: 10] Favorites ----------- Power Ion Engine Engine Ion Engine Propulsion Aluminum Leg Leg Aluminum Leg Wheel Compact Wheel Hover Unit Improved Hover Unit Utility Seismic Detector Device Seismic Detector Storage Small Storage Unit Protection Hardened Light Armor Plating Weapon Assault Rifle Ballistic Gun Assault Rifle Special Weapon Mining Laser Build | -11 -10 -10 ------- Run | Yrd Mat Sub Slots Evolved . | . . . Power . | . . . Propulsion . | . . . Utility . | . . . Weapon . | . . . Parts Attached 16 | 8 6 2 Power 1 | 1 . . Engine 1 | 1 . . Core . | . . . Reactor . | . . . Propulsion 7 | 3 3 1 Treads . | . . . Leg 2 | 2 . . Wheel 3 | 1 1 1 Hover 2 | . 2 . Flight . | . . . Utility 5 | 2 2 1 Device 1 | 1 . . Storage 3 | 1 2 . Processor . | . . . Hackware . | . . . Protection 1 | . . 1 Artifact . | . . . Weapon 3 | 2 1 . Energy Gun . | . . . Energy Cannon . | . . . Ballistic Gun 2 | 2 . . Ballistic Cannon . | . . . Launcher . | . . . Special Weapon 1 | . 1 . Impact Weapon . | . . . Slashing Weapon . | . . . Piercing Weapon . | . . . Special Melee Weapon . | . . . Unidentified Prototypes . | . . . Parts Lost 4 | . . 4 Power 1 | . . 1 Propulsion 1 | . . 1 Utility . | . . . Weapon 2 | . . 2 Highest Loss Streak 4 | . . 4 To Critical Strikes . | . . . Average Backups 7 | 1 7 12 Power . | . . 1 Propulsion . | . . 1 Utility 4 | . 4 7 Weapon . | . 1 1 Tool/Special . | . . . Unused Backups 10 | . . 10 Power 1 | . . 1 Propulsion 1 | . . 1 Utility 7 | . . 7 Weapon . | . . . Tool/Special 1 | . . 1 Average Slot Usage (%) 98 | . 99 95 Engine 13 | . 14 12 Leg 8 | . 10 . Wheel 9 | . 6 26 Hover 9 | . 11 . Device 12 | . 13 6 Storage 14 | . 14 14 Protection 1 | . . 7 Ballistic Gun 26 | . 26 26 Special Weapon 1 | . 1 . Peak Build Rating 10 | 7 10 10 Average Rating 8 | 5 8 9 On Entrance 5 | . 7 8 Avg Prop Armor Cover (%) 7 | 15 6 . Naked Turns . | . . . Heaviest Build 54 | 15 50 54 Greatest Support 32 | 20 26 32 Greatest Overweight (x) 2 | . 1 2 Average Overweight (x) . | . . 1 Largest Inventory Capacity 20 | 8 20 20 Average Capacity 11 | 7 10 20 Most Carried 14 | 4 11 14 Average Carried 7 | 1 7 13 Final Capacity 20 | 8 20 20 Final Carried 13 | 4 11 13 Class Distribution -------------------- 100% | Mutant Dominant Class ---------------- Mutant | -10/Materials Mutant | -10/Subcaves Resources | -11 -10 -10 ----------- Run | Yrd Mat Sub Matter Collected 1012 | 372 568 72 Remotely . | . . . Salvage Created 708 | 180 379 149 Parts 54 | 14 25 15 Haulers Intercepted . | . . . Recyclers Shooed . | . . . Parts Field Recycled . | . . . Retrieved Matter . | . . . Parts Self-Destructed . | . . . Prevented . | . . . Parts Restored . | . . . Kills | -11 -10 -10 ------- Run | Yrd Mat Sub Combat Hostiles Destroyed 13 | . 9 4 Guns 13 | . 9 4 Classes Destroyed 7 | 3 3 1 Worker 1 | 1 . . Tunneler 3 | 3 . . Recycler 2 | 1 1 . Watcher 1 | . 1 . Swarmer 3 | . 3 . Grunt 6 | . 6 . Subdweller 4 | . . 4 Best Kill Streak 3 | 3 3 3 Combat Bots Only 3 | . 3 3 Max Kills in Single Turn 1 | 1 1 1 Gunslinging . | . . . Exploded . | . . . Melee . | . . . Uniques/NPCs Destroyed . | . . . Combat | -11 -10 -10 -------- Run | Yrd Mat Sub Hostile Shots Fired 60 | . 26 34 Missed 11 | . 5 6 Hits 49 | . 21 28 Projectile 49 | . 21 28 Critical Strikes 1 | . 1 . Damage Taken 829 | . 242 587 Core 254 | . 16 238 Absorbed by Shields . | . . . Regen/Repaired (Parts) 15 | . 15 . Core Remaining (%) 100 | 100 . . Volleys Fired 73 | 7 50 16 Largest 2 | 2 2 2 Hottest 100 | 40 100 40 Shots Fired 126 | 14 81 31 Gun 111 | 14 66 31 Cannon . | . . . Launcher . | . . . Special 15 | . 15 . Kinetic 111 | 14 66 31 Thermal 15 | . 15 . Explosive . | . . . Electromagnetic . | . . . Robot Hit Streak 14 | 5 8 14 Robot Miss Streak 4 | 1 4 3 Penetration Max . | . . . Secondary Targets . | . . . Shots Hit Robots 78 | 9 41 28 Core Hits 32 | 6 18 8 Critical Kills . | . . . Critical Parts Destroyed . | . . . Critical Strikes . | . . . Melee Attacks . | . . . Impact . | . . . Slashing . | . . . Piercing . | . . . Sneak Attacks . | . . . Combat Hostiles . | . . . Follow-up Attacks . | . . . Damage Inflicted 981 | 125 508 348 Guns 981 | 125 508 348 Cannons . | . . . Explosions . | . . . Melee . | . . . Ramming . | . . . Kinetic 981 | 125 508 348 Thermal . | . . . Explosive . | . . . Electromagnetic . | . . . Impact . | . . . Slashing . | . . . Piercing . | . . . Highest Corruption . | . . . Average Corruption . | . . . Corruption Purged . | . . . Corruption Blocked . | . . . Overload Shots . | . . . Overflow Damage . | . . . Projectiles . | . . . Explosions . | . . . Melee . | . . . Knockbacks . | . . . Impact . | . . . Kinetic . | . . . Secondary . | . . . Self-Inflicted Damage . | . . . Shots . | . . . Rammed . | . . . Targets Rammed . | . . . Kicked . | . . . Crushed . | . . . Highest Temperature 170 | . 170 . Average Temperature 64 | . 64 . Received Heat Transfer 222 | . 132 90 Siege Activations . | . . . Martial Activations . | . . . Shielding Activations . | . . . Robots Disrupted . | . . . Combat Hostiles . | . . . Robots Corrupted . | . . . Combat Hostiles . | . . . Parts Fried . | . . . Impact Corruptions . | . . . Robots Melted . | . . . Combat Hostiles . | . . . Parts Melted . | . . . Heat Transferred . | . . . Parts Sabotaged . | . . . Parts Stolen . | . . . Parts Stripped . | . . . Power Chain Reactions . | . . . Alert | -11 -10 -10 ------- Run | Yrd Mat Sub Maximum Alert Level . | . . . Low Security (%) 100 | 100 100 . Level 1 . | . . . Level 2 . | . . . Level 3 . | . . . Level 4 . | . . . Level 5 . | . . . High Security . | . . . Max Security . | . . . Peak Influence 94 | 10 94 . Initial 3 | . 3 . Average 24 | 2 27 . Influence Increases 374 | 25 349 . Destroy 0b10 Robot/C 180 | . 180 . Destroy 0b10 Robot/NC 35 | 25 10 . Destroy Leader 52 | . 52 . Successful Hack 51 | . 51 . Select Force Hacks 30 | . 30 . Destroy Structure 11 | . 11 . Lose Combat Pursuer 15 | . 15 . Influence Decreases 374 | 20 342 12 Entered New Map 9 | . 2 7 Time Decay 365 | 20 340 5 Squads Dispatched 6 | . 6 . Investigation 4 | . 4 . Extermination . | . . . Reinforcement 2 | . 2 . Assault . | . . . Garrison . | . . . Intercept . | . . . Searches Triggered . | . . . Construction Impeded . | . . . Haulers Reinforced . | . . . Active Scanning Responses . | . . . Cargo Convoy Interrupts . | . . . Stealth | -11 -10 -10 --------- Run | Yrd Mat Sub Distress Signals 5 | . 5 . Communications Jammed . | . . . Distress Signals . | . . . Times Spotted 29 | . 18 11 Peak Tracking Total 6 | . 3 6 Tactical Retreats 4 | . 3 1 Traps | -11 -10 -10 ------- Run | Yrd Mat Sub Traps Triggered 1 | . 1 . Indirectly . | . . . Trap Hack Attempts . | . . . Triggered . | . . . Disarmed . | . . . Reprogrammed . | . . . Reused . | . . . Traps Extracted . | . . . Installed . | . . . Triggered . | . . . Machines | -11 -10 -10 ---------- Run | Yrd Mat Sub Machines Disabled . | . . . Max in Single Turn . | . . . Machines Repaired . | . . . Machines Dismantled . | . . . Machines Sabotaged . | . . . Overloaded Fab Kills . | . . . Hacking | -11 -10 -10 --------- Run | Yrd Mat Sub Machines Accessed 8 | . 8 . Terminals 6 | . 6 . Fabricators . | . . . Repair Stations 1 | . 1 . Recycling Units 1 | . 1 . Scanalyzers . | . . . Garrison Access . | . . . Total Hacks 29 | . 29 . Successful 23 | . 23 . Failed 6 | . 6 . Catastrophic . | . . . Database Lockouts . | . . . Manual 19 | . 19 . Terminals 25 | . 25 . Fabricators . | . . . Repair Stations 3 | . 3 . Recycling Units 1 | . 1 . Scanalyzers . | . . . Garrison Access . | . . . Terminal Hacks 8 | . 8 . Robot Analysis 2 | . 2 . Prototype ID Bank 1 | . 1 . Terminal Index 1 | . 1 . Locate Traps 2 | . 2 . Zone Layout 2 | . 2 . Fabricator Hacks . | . . . Repair Station Hacks 3 | . 3 . Scan Component 2 | . 2 . Repair 1 | . 1 . Recycling Unit Hacks . | . . . Scanalyzer . | . . . Garrison Access Hacks . | . . . Unauthorized Hacks 12 | . 12 . Terminals 11 | . 11 . Botnet 4 | . 4 . Disrupt 1 | . 1 . Operators 1 | . 1 . Skim 5 | . 5 . Fabricators . | . . . Repair Stations . | . . . Recycling Units 1 | . 1 . Tunnel 1 | . 1 . Scanalyzers . | . . . Garrison Access . | . . . Data Cores Recovered . | . . . Used . | . . . Hacking Detections 7 | . 7 . Full Trace Events 1 | . 1 . Feedback Events . | . . . Feedback Blocked . | . . . Robot Schematics Acquired . | . . . Robots Built . | . . . Authchips . | . . . Time . | . . . Total Robot Build Rating . | . . . Part Schematics Acquired . | . . . Parts Built . | . . . Authchips . | . . . Time . | . . . Total Part Build Rating . | . . . Part Studies Acquired . | . . . Parts Repaired 1 | . 1 . Time 26 | . 26 . Parts Recycled . | . . . Recycled Matter . | . . . Retrieved Matter . | . . . Retrieved Components . | . . . Parts Scanalyzed . | . . . Part Schematics Acquired . | . . . Parts Damaged . | . . . Bothacking | -11 -10 -10 ------------ Run | Yrd Mat Sub Used RIF Installer . | . . . Robots Hacked . | . . . Non-combat . | . . . Combat . | . . . Robot Hacks Applied . | . . . Relay Couplers Released . | . . . Fabnet Peak Effective % . | . . . Robots Rewired . | . . . Allies Hacked . | . . . Hacks Repelled . | . . . Allies | -11 -10 -10 -------- Run | Yrd Mat Sub Total Allies . | . . . Largest Group . | . . . Highest-Rated Group . | . . . Highest-Rated Ally . | . . . Total Orders . | . . . Ally Attacks . | . . . Total Damage . | . . . Kills . | . . . Allies Corrupted . | . . . Allies Melted . | . . . Intel | -11 -10 -10 ------- Run | Yrd Mat Sub Active Infowar (turns) 1313 | 65 1145 103 Seismic 1313 | 65 1145 103 Robot Analysis Total 2 | . 2 . Derelict Logs Recovered . | . . . Drone Launches . | . . . Drone Recoveries . | . . . Exploration | -11 -10 -10 ------------- Run | Yrd Mat Sub Turns Passed 1540 | 119 1200 221 Spaces Moved 818 | 74 613 131 Core 12 | 12 . . Treads . | . . . Legs 280 | 57 223 . Wheels 227 | 5 91 131 Hover 299 | . 299 . Flight . | . . . Fastest Speed 50 | 50 56 105 Average Speed 106 | 107 105 111 Slowest Speed 190 | 120 190 120 Overloaded Moves . | . . . Propulsion Burnouts . | . . . Robots Hopped . | . . . Potential Cave-ins 2 | . 2 . Cave-ins Triggered . | . . . Exploration Rate (%) 32 | 4 87 7 Regions Visited 2 Branch Regions 1 Pre-discovered Areas 2 | . 2 . Known Exits Taken 1 | . 1 . Unknown Exits Taken 1 | 1 . . Scrap Searched . | . . . Spaces Dug 6 | . 6 . Terrain Destroyed 15 | . 15 . Melee . | . . . Projectile 15 | . 15 . AOE . | . . . Terrain Rammed . | . . . Walls Destroyed . | . . . Machines Disabled . | . . . Actions | -11 -10 -10 --------- Run | Yrd Mat Sub Total 1319 | 95 1050 174 Wait 381 | 3 357 21 Move 816 | 73 612 131 Hop . | . . . Pick Up 16 | 4 10 2 Fast Attach 8 | 7 1 . Attach 1 | . . 1 Detach . | . . . Swap 20 | 1 16 3 Drop 4 | . 4 . Fire 73 | 7 50 16 Melee . | . . . Ram . | . . . Kick . | . . . Crush . | . . . Escape Stasis . | . . . Rewire . | . . . Trap . | . . . Miscellaneous . | . . . Route ------- -11/Scrapyard -10/Materials (discovered 5 exits: *Mat x3 / *Min / *Sub) -10/Subcaves (discovered 2 exits: Mat x2) History --------- Turn | Location | Event 10 | -11/Scrapyard | Discovered new exit (range 15) 120 | -11/Scrapyard | Entered Materials 304 | -10/Materials | Build established: Mutant 364 | -10/Materials | Repaired Seismic Detector 455 | -10/Materials | Discovered new exit (range 3) 626 | -10/Materials | Discovered new exit (range 3) 656 | -10/Materials | Discovered new exit (range 14) 702 | -10/Materials | Discovered new exit (range 3) 720 | -10/Materials | Derelicts attacked the area 1004 | -10/Materials | Identified exit to Subcaves 1004 | -10/Materials | Identified exit to Materials 1004 | -10/Materials | Identified exit to Mines 1064 | -10/Materials | Learned 2 Mines zone layouts 1112 | -10/Materials | Learned location of 1 exit from Storage 1178 | -10/Materials | Learned location of 2 exits from Materials 1199 | -10/Materials | Learned Storage garrison access intel 1209 | -10/Materials | Learned 4 Recycling zone layouts 1257 | -10/Materials | Learned location of 2 exits from Subcaves 1320 | -10/Materials | Entered Subcaves 1321 | -10/Subcaves | Identified exit to Materials 1399 | -10/Subcaves | A swath of the cavern ceiling suddenly collapsed 1482 | -10/Subcaves | Ambushed by swarm of Subdwellers 1482 | -10/Subcaves | Ambushed by Subdwellers from Twisted Machinery 1482 | -10/Subcaves | Ambushed by Subdwellers from Twisted Machinery 1536 | -10/Subcaves | Core integrity fell below 50% 1540 | -10/Subcaves | Core integrity fell below 20% 1541 | -10/Subcaves | Destroyed by C4-PJV(R) with Subdweller Laser Last Messages --------------- A mess of Twisted Machinery falls from the cavern ceiling. 71-SWG(R) comes tumbling into view. 01482_ 2C-TY7(h): "The Subs are coming!" 01482_ HV Slug penetrates Twisted Machinery. 01482_ M7-DLA(R) angrily emerges from the Twisted Machinery. 01482_ QB-I0W(R) angrily emerges from the Twisted Machinery. 01482_ HV Slug penetrates 71-SWG(R). 01482_ 71-SWG(R) suffers critical hit (Destroy). 01482_ 71-SWG(R) knocked back. 01484_ AM-R4O(R) emerges from the Twisted Machinery. 01484_ 2C-TY7(h) destroyed. 01511_ 71-SWG(R) destroyed. 01511_ Ion Engine destroyed. 01515_ Wheel destroyed. 01526_ V6-DL9(R) destroyed. 01529_ M7-DLA(R) destroyed. 01531_ Assault Rifle destroyed. 01536_ Acquired 37 matter. 01536_ C4-PJV(R) affixes Scrap Shield Fragment to Scrap Shield. 01540_ Acquired 3 matter. Map ----- +----------------------------------------------------+ | ?????????????????????????????????????????????????? | | ?????????????????????????????????????????????????? | | ?????????????????????????????????????????????????? | | ?????????????????????????????????????????????????? | | ?????????????????????????????????????????????????? | | ?????????????????????????????????????????????????? | | ?????????????????????????????????????????????????? | | ?????????????????????????????????????????????????? | | ?????????????????????????????????????????????????? | | ?????????????????????????????????????????????????? | | ?????????????????????????????????????????????????? | | ?????????????????????????????????????????????????? | | ???????????????????????????#?????????????????????? | | ???????????????????????????"?????????###?????????? | | ???????????###????##???????&##?????#" ##????????? | | ???????????# ##?? #??????? #????#" #???????? | | ???????????# ### #???????# "?###" ???????? | | ??????###### #??????## ## " ?????????? | | ?????## # ## #??????#" " #???????????? | | ##???? ####???#&! #???????????? | | ###???# [= ## ###?#%== #???????????? | | " ##?## # #?## !%% ###&[&& #???????????? | | "" ###" "#??# [%! ### !% #???????????? | | "##"""" ##?# ##R ##R&R #???????????? | | "##"#"## #### #### && #??????????? | | ##""##"#% ## & ##[! R"@ #??????? | | #"""#"#" &% [%%=!%""#### ## ##??????? | | ##"###"# =*##???### ## ##??????????? | | #"##??## ## # ########???????####??##???????????? | | ###????#########?????????????????????????????????? | | ?????????????????????????????????????????????????? | | ?????????????????????????????????????????????????? | | ?????????????????????????????????????????????????? | | ?????????????????????????????????????????????????? | | ?????????????????????????????????????????????????? | | ?????????????????????????????????????????????????? | | ?????????????????????????????????????????????????? | | ?????????????????????????????????????????????????? | | ?????????????????????????????????????????????????? | | ?????????????????????????????????????????????????? | | ?????????????????????????????????????????????????? | | ?????????????????????????????????????????????????? | | ?????????????????????????????????????????????????? | | ?????????????????????????????????????????????????? | | | | | | | | | | | | | +----------------------------------------------------+ Best States ------------- Heat Dissipation 25 Energy Generation 10 Energy Capacity 250 Matter Stores 340 Matter Capacity 350 Sight Range 16 Terrain Scan Density 10 Armor Coverage 150 Evasion (%) 55 Item Schematics ----------------- None Robot Schematics ------------------ None Fabricated ------------ Nothing Repaired ---------- Seismic Detector | 25% | -10/Materials Studied --------- None Alien Tech Used ----------------- None Achievements -------------- None Challenges ------------ None Game ------ Seed CryofiberSurveybotPick Manual? 0 Play Time 00:14:28 Cumulative 412.7 hours Start 2026.07.01 @ 00:57:35 End 2026.07.01 @ 01:09:50 Sessions 1 Manual Loads 0 Difficulty Rogue Special Mode None Game No. 309 Rogue 309 Adventurer 0 Explorer 0 Win Type - Total 9 Types 4/0/3/2/0/0/0/0/0/0 Lore% 76 Gallery% 73 Achievement% 51 Wizard Run 0 Options --------- Layout 2 ASCII 0 Keyboard 1 Movement Vi Keybinds 0 Fullscreen 2 Font 32/SmallcapsGlow Map View 77x44 Zoom Use 0% Tactical HUD 1 Map Filters NONE Filters NONE Steam 1 RUN: c6dd7e27-835f-4392-8a9d-d5c76764f1d9